[Event "Charlotte Summer IM B 2022"]
[Site "Charlotte"]
[Date "2022.07.27"]
[Round "6.5"]
[White "Kolay, Alex"]
[Black "Atanasov, Anthony"]
[Result "1-0"]
[ECO "D90"]
[WhiteElo "2188"]
[BlackElo "2172"]
[Annotator "TA"]
[PlyCount "105"]
[EventDate "2022.07.24"]
[EventType "tourn"]
[EventCountry "USA"]
[SourceTitle "playchess.com"]
[Source "ChessBase"]
[SourceQuality "1"]
[TimeControl "5400+30"]

{[%evp 9,104,0,12,-10,-15,-40,-37,-35,-41,-48,-40,-45,-40,-70,-58,-72,-67,-76,-66,-77,-37,-57,-77,-124,-81,-95,-95,-152,-129,-159,-157,-157,-119,-135,-109,-118,-109,-118,-122,-124,-116,-126,-128,-126,-121,-118,-57,-131,-121,-121,-133,-132,-112,-190,-134,-232,-122,-196,-27,-46,0,0,16,0,37,0,0,0,91,97,1214,1180,1451,1427,1389,1373,1258,1473,1393,1335,29988,29987,29989,29989,29989,29980,29988,29989,29991,29992,29992,29993,29995,29996,29998,29999,29999]} 1. d4 {[%emt 0:05:06]} Nf6 {[%emt 0:00:10]} 2. c4 {[%emt 0:00:07]} g6 {[%emt 0:00:06]} 3. Nc3 {[%emt 0:00:06]} d5 {[%emt 0:00:11]} 4. Nf3 {[%emt 0:00:08]} Bg7 {[%emt 0:00:07]} 5. h4 {[%emt 0:00:42]} c6 {[%emt 0:00:33]} 6. Bg5 {[%emt 0:00:37] D90: Grünfeld: 4 Nf3 Bg7 sidelines.} dxc4 {[%emt 0:01:05]} 7. e4 {[%emt 0:00:18]} Be6 {[%emt 0:00:40]} 8. e5 {[%emt 0:00:35] Black is slightly better.} Nd5 {[%emt 0:00:16]} 9. h5 {[%emt 0:00:37]} Nxc3 {[%emt 0:00:44]} 10. bxc3 {[%emt 0:00:13]} Nd7 {[%emt 1:31:38]} 11. h6 {[%emt 0:40:30]} Bf8 {[%emt 0:00:00] [#]} 12. a4 $146 {[%emt 0:02:25]} ({Predecessor:} 12. Nd2 Qa5 13. Qf3 Nb6 14. Be2 f6 15. Bf4 g5 16. Be3 Qxc3 17. O-O Qc2 18. exf6 {0-1 (32) Kozak,A (2526)-Antal,G (2561) Budapest 2021}) 12... Qa5 {[%emt 0:00:00]} 13. Qc1 {[%emt 0:15:30]} O-O-O {[%emt 0:00:00]} 14. Be2 {[%emt 0:05:07]} Bd5 {[%emt 0:00:00]} (14... f6 $5 {[%cal Rf6g5]} 15. Be3 Nb6 $15) 15. Nd2 {[%emt 0:04:33]} f6 {[%emt 0:00:00]} (15... Bxg2 16. Nxc4 Qc7 17. Rg1 $11) 16. Bf4 {[%emt 0:01:36]} (16. Be3 $142) 16... Nb6 {[%emt 0:00:00]} (16... Bxg2 17. Nxc4 Qd5 18. Ne3 $14) 17. O-O {[%emt 0:04:21]} g5 {[%emt 0:00:00]} 18. Bh2 {[%emt 0:10:48]} (18. Be3 $142) 18... f5 $17 {[%emt 0:00:00]} (18... Bxh6 19. exf6 exf6 20. Bg4+ Nd7 21. Qc2 $16) 19. Qc2 {[%emt 0:04:03]} e6 {[%emt 0:00:00]} ({Worse is} 19... Bxh6 20. Qxf5+ Kb8 21. Nxc4 $1 Nxc4 22. Bxc4 $11) 20. Rfb1 {[%emt 0:01:04][%cal Ob1b6]} Bxh6 {[%emt 0:00:00]} 21. Rxb6 {[%emt 0:01:29]} Qxb6 {[%emt 0:00:00]} 22. Nxc4 {[%emt 0:00:18]} Bxc4 {[%emt 0:00:00]} 23. Bxc4 {[%emt 0:00:07] Strongly threatening a5.} Rhe8 {[%emt 0:00:00]} 24. g4 {[%emt 0:01:13]} f4 {[%emt 0:00:00] Threatens to win with ...c5.} ({Don't play} 24... fxg4 $6 25. Qxh7 Bf8 26. a5 $15) 25. Qxh7 {[%emt 0:00:22]} Bf8 {[%emt 0:00:00]} 26. Rb1 {[%emt 0:00:54]} Qc7 {[%emt 0:00:00]} 27. Qg6 {[%emt 0:00:06]} Qe7 {[%emt 0:00:00]} (27... Qg7 $17 28. Bxe6+ Kb8) 28. a5 {[%emt 0:00:37]} (28. Kg2 $1 $15) 28... Kc7 {[%emt 0:00:00]} 29. Kg2 {[%emt 0:00:41]} Qg7 {[%emt 0:00:00]} 30. Qe4 {[%emt 0:00:28]} Rd7 {[%emt 0:00:00]} 31. a6 {[%emt 0:00:29]} (31. Rh1 $17 {is a better defense.}) 31... b6 {[%emt 0:00:00]} ({Black should play} 31... b5 $19 32. Be2 (32. Bxb5 $2 cxb5 33. Rxb5 Rb8 $19) 32... Qh7 33. Qxh7 Rxh7) 32. Bd3 {[%emt 0:01:20]} (32. Rh1 $17) 32... Rc8 {[%emt 0:00:00]} (32... Ba3 $1 $19 {White must now prevent ...Rh8.} 33. Qg6 Qxg6 34. Bxg6 Rf8) 33. f3 {[%emt 0:00:00]} (33. Rh1 $17) 33... Kb8 $2 {[%emt 0:01:25]} (33... Ba3 $1 $19 {aiming for ...Rh8.} 34. Bg1 Rh8) 34. Bg1 {[%emt 0:00:03]} Qe7 {[%emt 0:03:06]} (34... c5 $15 {deserves consideration.}) 35. Bf2 $11 {[%emt 0:00:40]} Qa3 {[%emt 0:01:06]} 36. Bc4 {[%emt 0:00:25][%mdl 1024] White has compensation.} Re7 {[%emt 0:01:18]} 37. Rb3 {[%emt 0:00:38]} Qa4 {[%emt 0:00:33]} 38. Rb4 {[%emt 0:00:17]} Qa1 {[%emt 0:00:17] [#]} (38... Qd1 $11) 39. Qc2 $1 $16 {[%emt 0:00:41]} b5 {[%emt 0:01:35][%mdl 8192] [#] Prevents Ra4.} (39... Rec7 $16 40. Rb2 Qa3) 40. Ba2 $1 $18 {[%emt 0:00:11]} Rcc7 {[%emt 0:02:03]} 41. Rb1 {[%emt 0:00:12]} Qxb1 {[%emt 0:00:05]} 42. Qxb1 {[%emt 0:00:06]} Kc8 {[%emt 0:00:15]} 43. Qg6 {[%emt 0:00:17][%csl LRe6,LRg5]} Kd7 {[%emt 0:04:47]} 44. Qxg5 {[%emt 0:00:08]} Rf7 {[%emt 0:00:00]} 45. Qg8 {[%emt 0:02:52] White mates.} Ke7 {[%emt 0:00:00]} 46. Bh4+ {[%emt 0:00:00]} Ke8 {[%emt 0:00:00]} 47. Bf6 {[%emt 0:00:00]} b4 {[%emt 0:00:00]} 48. cxb4 {[%emt 0:00:00]} c5 {[%emt 0:00:00]} 49. bxc5 {[%emt 0:00:00]} Rc6 {[%emt 0:00:00]} 50. Bc4 {[%emt 0:00:00]} Rxc5 {[%emt 0:00:00]} 51. dxc5 {[%emt 0:00:00]} Rd7 {[%emt 0:00:00]} 52. Qg6+ {[%emt 0:00:00]} Rf7 {[%emt 0:00:00]} 53. Bb5# {[%emt 0:00:00] Quite a comeback for White.  Weighted Error Value: White=0.18 (very precise) /Black=0.38} 1-0

[Event "Charlotte Summer IM B 2022"]
[Site "Charlotte"]
[Date "2022.07.28"]
[Round "7.1"]
[White "Atanasov, Anthony"]
[Black "Zaloznyy, Mike"]
[Result "1-0"]
[ECO "D02"]
[WhiteElo "2172"]
[BlackElo "2171"]
[Annotator "TA"]
[PlyCount "155"]
[EventDate "2022.07.24"]
[EventType "tourn"]
[EventCountry "USA"]
[SourceTitle "playchess.com"]
[Source "ChessBase"]
[SourceQuality "1"]
[TimeControl "5400+30"]

{[%evp 9,155,0,0,0,8,-4,0,-4,0,0,12,-1,0,0,0,0,-14,-11,-18,-18,0,0,0,0,0,-6,0,-3,0,0,0,0,0,0,0,0,0,0,0,-29,0,0,0,-17,-6,-13,-19,-46,-6,-12,-13,-13,0,-7,0,-14,-5,-8,0,-18,0,0,0,0,17,0,6,0,0,0,137,137,203,209,189,169,308,299,501,0,0,0,327,326,326,321,718,504,1027,341,318,112,105,99,558,583,506,431,542,479,29966,225,225,225,225,225,225,208,229,224,431,327,304,304,306,247,567,542,532,452,542,479,29975,29974,29975,29968,29978,29979,29982,29982,29981,29982,29982,29983,29983,29984,29984,29985,29985,29986,29986,29984,29985,29986,29986,29987,29987,29988]} 1. d4 {[%emt 0:00:01]} d5 {[%emt 0:04:55]} 2. Bf4 {[%emt 0:00:33]} Nf6 {[%emt 0:00:16]} 3. e3 {[%emt 0:00:12]} e6 {[%emt 0:00:21]} 4. Nf3 {[%emt 0:00:48]} Bd6 {[%emt 0:00:16]} 5. Nbd2 {[%emt 0:00:43]} O-O {[%emt 0:00:59]} 6. Bd3 {[%emt 0:00:45] D02: 1 d4 d5 2 Nf3 sidelines, including 2...Nf6 3 g3 and 2...Nf6 3 Bf4.} c5 {[%emt 0:00:36]} 7. c3 {[%emt 0:00:48]} Bxf4 {[%emt 0:00:17]} 8. exf4 {[%emt 0:00:10] The position is equal.} b6 {[%emt 0:02:20]} 9. O-O {[%emt 0:06:19]} Qd6 {[%emt 0:01:23]} 10. g3 {[%emt 0:00:50]} Ba6 {[%emt 0:00:28]} 11. Bxa6 {[%emt 0:01:12]} Nxa6 {[%emt 0:00:12]} 12. Qe2 {[%emt 0:01:22]} Nb8 {[%emt 0:01:26]} 13. Qd3 {[%emt 0:03:47]} Nc6 {[%emt 0:01:47]} 14. Rfe1 {[%emt 0:01:57] [#]} cxd4 $146 {[%emt 0:02:12]} ({Predecessor:} 14... Rac8 15. Re2 cxd4 16. Nxd4 Nxd4 17. Qxd4 Qc5 18. Nb3 Qxd4 19. Nxd4 g6 20. f3 a6 21. g4 Nd7 {1-0 (42) Svane,R (2637)-Keymer,V (2655) Chess.com INT 2022}) 15. Nxd4 {[%emt 0:00:19]} Nxd4 {[%emt 1:20:32]} 16. Qxd4 {[%emt 0:00:17]} Qc5 {[%emt 0:00:00]} 17. Qd3 {[%emt 0:09:05]} g6 {[%emt 0:00:00]} 18. Rad1 {[%emt 0:04:22]} Rfc8 {[%emt 0:00:00]} 19. Nb3 {[%emt 0:08:38][%cal Bd2b3,Bb3c1,Bc1d3,Bd3e5][%mdl 32]} Qc4 {[%emt 0:00:00]} 20. Qe3 {[%emt 0:04:08]} b5 {[%emt 0:00:00]} 21. Rd4 {[%emt 0:07:04]} Qc7 {[%emt 0:00:00]} 22. Nc1 {[%emt 0:04:08]} a5 {[%emt 0:00:00]} 23. Nd3 {[%emt 0:02:58]} Qb6 {[%emt 0:00:00][%cal Ob5b4]} 24. Rd1 {[%emt 0:04:41]} Rc4 {[%emt 0:00:00]} (24... b4 $5 {[%cal Rb4c3]} 25. Ne5 bxc3 26. bxc3 Qb2 $17) 25. Ne5 {[%emt 0:01:39]} Rxd4 {[%emt 0:00:00]} 26. Qxd4 {[%emt 0:04:05]} Rb8 {[%emt 0:00:00]} 27. a3 {[%emt 0:05:02]} Ne4 {[%emt 0:06:00]} 28. Kg2 {[%emt 0:02:55]} Nd6 {[%emt 0:00:00]} 29. Qd3 {[%emt 0:02:27]} Nc4 {[%emt 0:00:00]} 30. Qe2 {[%emt 0:03:16]} Qb7 {[%emt 0:00:00] Prevents Nd7.} 31. Rd4 {[%emt 0:01:35]} Nd6 {[%emt 0:02:00][%cal Bc4d6,Bd6e4,Be4c5,Bc5a4][%mdl 32]} 32. g4 {[%emt 0:04:31]} Rc8 {[%emt 0:00:00]} 33. h3 {[%emt 0:01:20]} Ne4 {[%emt 0:00:00]} 34. f3 {[%emt 0:01:06]} Nc5 {[%emt 0:00:00]} 35. Qd1 Na4 {[%emt 0:02:00]} 36. Qe2 {[%emt 0:04:47]} Re8 {[%emt 0:00:00]} 37. Nd3 {[%emt 0:01:13]} Qc6 {[%emt 0:00:00]} 38. Ne5 {[%emt 0:02:16]} Qb7 {[%emt 0:00:00]} 39. Nd3 {[%emt 0:00:26]} Qc7 {[%emt 0:00:23]} (39... Nb6 $11 {remains equal.}) 40. Rxd5 $1 $16 {[%emt 0:01:00]} Qc4 {[%emt 0:01:13]} (40... Rb8 $16 41. Rd4 Nb6) 41. Rd4 $18 {[%emt 0:00:42]} Qa2 {[%emt 0:00:05]} 42. Qf2 {[%emt 0:02:26] Hoping for Rd7.} Rc8 {[%emt 0:00:28]} (42... Nb6 $142 43. Qe2 Nc4) 43. Rd7 {[%emt 0:01:14]} Qb1 $2 {[%emt 0:00:44]} (43... Qc4 {was called for.} 44. Kg3 Rf8) 44. Qf1 $2 {[%emt 0:01:12]} ({Better is} 44. Qa7 $18 {[%cal Od7f7]} Rf8 45. g5 (45. Qxa5 Qc2+ 46. Nf2 Qxb2 $16) 45... Nxb2 46. Ne5) 44... Qc2+ $11 {[%emt 0:00:19]} 45. Qf2 $2 {[%emt 0:00:01][%mdl 8192]} (45. Kg3 $11) 45... Qb1 $1 $18 {[%emt 0:00:14]} 46. f5 {[%emt 0:00:38]} exf5 {[%emt 0:00:26]} 47. gxf5 {[%emt 0:00:19]} b4 $2 {[%emt 0:00:31]} (47... Nxb2 48. Qxb2 Qxb2+ 49. Nxb2 Rxc3) 48. axb4 {[%emt 0:01:12]} axb4 {[%emt 0:00:02]} (48... Nxb2 $142 49. Qxb2 Qxb2+ 50. Nxb2 axb4) 49. fxg6 $2 {[%emt 0:01:42]} (49. f6 {And now Qe3 would win.} Nxc3 50. Qd4 Qc2+ 51. Nf2) 49... hxg6 {[%emt 0:00:19] [#]} 50. Nxb4 {[%emt 0:00:48]} ({Not} 50. cxb4 $2 Rc2 51. b5 (51. Rd8+ $2 Kg7 $19) 51... Rxf2+ 52. Kxf2 Nxb2 53. Nxb2 Qxb2+ $19) (50. c4 $1 $18) 50... Qxb2 $16 {[%emt 0:01:34] [#]} 51. Rd2 $1 {[%emt 0:00:37]} ({Much less strong is} 51. Qxb2 Nxb2 52. Rd2 Nc4 $14) 51... Qxc3 {[%emt 0:00:31][%mdl 8192] A mistake that costs the game.} (51... Qc1 $16) 52. Rc2 $18 {[%emt 0:00:14]} Qxb4 {[%emt 0:00:24]} 53. Rxc8+ {[%emt 0:00:02][%mdl 4096] Endgame KQR-KQN} Kg7 {[%emt 0:00:12]} 54. Qe2 {[%emt 0:01:20] White threatens Qe5+ and mate.} Qf4 {[%emt 0:01:05] Against Qe5+} (54... Qd6 $18 55. Qe3 Nb6 56. Qc3+ f6 57. Rc7+ Kf8) 55. Rc4 $2 {[%emt 0:01:09]} (55. h4 {mates} Qf6 56. Qe8 Kh7 57. Qxa4 Kh6 58. Qa3 Kh7 59. Qc3 Qxc3 60. Rxc3) 55... Qg5+ {[%emt 0:00:01]} 56. Rg4 {[%emt 0:00:13]} Nc3 {[%emt 0:00:47] Threatens to win with ...Qxg4+.} 57. Rxg5 {[%emt 0:01:52] White wants to mate with Qe5+.} Nxe2 {[%emt 0:00:04] KR-KN} 58. Rg4 {[%emt 0:00:07]} Nc3 {[%emt 0:00:22]} 59. Rd4 {[%emt 0:00:29]} Nb5 $2 {[%emt 0:02:16]} (59... Kf6 60. Kf2 Ke6) 60. Rd7 {Kg3 is the strong threat.} Kf6 {[%emt 0:00:00]} 61. Kg3 {[%emt 0:00:33]} Ke6 {[%emt 0:00:00]} 62. Rb7 {[%emt 0:00:21]} Nd6 $2 {[%emt 0:00:00]} (62... Nd4 63. Kg4 f6 64. Rb6+ Ke7) 63. Rb6 {[%emt 0:00:19]} Ke7 {[%emt 0:00:00]} 64. Kf4 {[%emt 0:00:24] aiming for Kg5.} Nf5 {[%emt 0:00:24]} 65. Ke5 {[%emt 0:00:30] Strongly threatening Rb7+.} Nh4 {[%emt 0:00:43]} (65... Ng3 $18 66. Rb7+ Kf8) 66. Rb7+ {[%emt 0:00:22] White mates.} Ke8 {[%emt 0:00:20]} 67. f4 {[%emt 0:01:49]} Nf3+ {[%emt 0:00:12]} 68. Kf6 {[%emt 0:00:08]} Ng1 {[%emt 0:02:51]} 69. Rb3 {[%emt 0:00:31]} Kd7 {[%emt 0:00:00]} 70. Re3 {[%emt 0:00:19]} Kd6 {[%emt 0:00:00]} 71. Kxf7 {[%emt 0:00:12]} Kd5 {[%emt 0:00:00]} 72. Kxg6 {[%emt 0:00:10]} Kd4 {[%emt 0:00:00]} 73. Ra3 {[%emt 0:00:18]} Ne2 {[%emt 0:00:00]} 74. f5 {[%emt 0:00:20][%cal Bf4f5,Bf5f6][%mdl 32]} Nf4+ {[%emt 0:00:00]} 75. Kg7 {[%emt 0:00:43]} Ke5 {[%emt 0:00:00]} 76. Ra5+ {[%emt 0:00:19]} Kd6 {[%emt 0:00:00]} 77. f6 {[%emt 0:00:12]} Ne6+ {[%emt 0:00:00]} 78. Kg8 {[%emt 0:00:07] Weighted Error Value: White=0.43/Black=0.50} 1-0

[Event "Charlotte Summer IM B 2022"]
[Site "Charlotte"]
[Date "2022.07.27"]
[Round "7.2"]
[White "Adu, Oladapo"]
[Black "Kolay, Alex"]
[Result "1/2-1/2"]
[ECO "C95"]
[WhiteElo "2056"]
[BlackElo "2188"]
[Annotator "TA"]
[PlyCount "65"]
[EventDate "2022.07.24"]
[EventType "tourn"]
[EventCountry "USA"]
[SourceTitle "playchess.com"]
[Source "ChessBase"]
[SourceQuality "1"]
[TimeControl "5400+30"]

{[%evp 32,42,17,17,17,17,17,17,18,18,19,17,57]} 1. e4 {[%emt 0:01:15]} e5 {[%emt 0:05:58]} 2. Nf3 {[%emt 0:00:13]} Nc6 {[%emt 1:25:32]} 3. Bb5 {[%emt 0:00:10]} a6 {[%emt 0:00:00]} 4. Ba4 {[%emt 0:00:11]} Nf6 {[%emt 0:00:00]} 5. O-O {[%emt 0:00:25]} Be7 {[%emt 0:00:00]} 6. Re1 {[%emt 0:00:38]} b5 {[%emt 0:00:00]} 7. Bb3 {[%emt 0:00:11]} d6 {[%emt 0:00:00]} 8. c3 {[%emt 0:00:08]} O-O {[%emt 0:00:00]} 9. h3 {[%emt 0:00:09]} Nb8 {[%emt 0:00:00]} 10. d4 {[%emt 0:00:28]} Nbd7 {[%emt 0:00:00]} 11. Nbd2 {[%emt 0:00:18]} Bb7 {[%emt 0:00:00]} 12. Bc2 {[%emt 0:00:14]} Re8 {[%emt 0:00:00]} 13. Nf1 {[%emt 0:00:11]} Bf8 {[%emt 0:00:00]} 14. Ng3 {[%emt 0:00:07]} g6 {[%emt 0:00:00]} 15. a4 {[%emt 0:00:14]} c5 {[%emt 0:00:00]} 16. d5 {[%emt 0:00:44]} c4 {[%emt 0:00:00]} 17. Bg5 {[%emt 0:00:39] The position is equal.} Nc5 {[%emt 0:00:00] C95: Closed Ruy Lopez: Breyer Variation with 10 d4.} 18. Qd2 {[%emt 0:00:32]} Be7 {[%emt 0:00:00]} 19. Ra3 {[%emt 0:04:05]} Nfd7 {[%emt 0:00:00]} 20. Be3 {[%emt 0:00:24]} Qc7 {[%emt 0:00:00]} 21. Nh2 {[%emt 0:01:18]} Nb6 {[%emt 0:00:00] [#] Black got outplayed after the opening.  Weighted Error Value: White=0.00 (flawless) /Black=0.00 (flawless)} {Predecessor:} 22. axb5 $146 axb5 23. Rxa8 Rxa8 24. Ng4 Bc8 25. Nh6+ Kg7 26. Qe2 Qd8 27. Nh5+ gxh5 28. Qxh5 Qe8 29. Bxc5 dxc5 30. Re3 Kh8 31. Nxf7+ Kg7 32. Rg3+ Kf8 33. Qh6+ {1-0 (33) Ter Sahakyan,S (2551)-Doshi,M (2193) Riga 2018} 1/2-1/2

[Event "Charlotte Summer IM B 2022"]
[Site "Charlotte"]
[Date "2022.07.28"]
[Round "7.3"]
[White "Ringoir, Tanguy"]
[Black "Mishra, Prateek"]
[Result "1/2-1/2"]
[ECO "D71"]
[WhiteElo "2490"]
[BlackElo "2204"]
[Annotator "TA"]
[PlyCount "49"]
[EventDate "2022.07.24"]
[EventType "tourn"]
[EventCountry "USA"]
[SourceTitle "playchess.com"]
[Source "ChessBase"]
[SourceQuality "1"]
[TimeControl "5400+30"]

{[%evp 9,49,1,8,9,6,9,14,16,27,26,67,12,4,15,45,44,39,43,47,31,41,21,26,2,6,0,41,28,29,40,68,64,71,0,0,0,0,0,0,0,0,-466]} 1. d4 {[%emt 0:00:01]} Nf6 {[%emt 1:31:00]} 2. c4 {[%emt 0:00:06]} g6 {[%emt 0:00:00]} 3. g3 {[%emt 0:00:05]} c6 {[%emt 0:00:00]} 4. Bg2 {[%emt 0:00:21]} d5 {[%emt 0:00:00]} 5. e3 {[%emt 0:05:33]} Bg7 {[%emt 0:00:00]} 6. Ne2 {[%emt 1:27:24] D71: Fianchetto Grünfeld: 3 g3 d5 sidelines and 5 cxd5 (without Nf3).} O-O {[%emt 0:00:00]} 7. O-O {[%emt 0:00:00]} Bf5 {[%emt 0:00:00]} 8. b3 {[%emt 0:00:00]} a5 {[%emt 0:00:00]} 9. Nbc3 {[%emt 0:00:00] [#]} Ne4 $146 {[%emt 0:00:00]} ({Predecessor:} 9... Qd7 10. Na4 Qc7 11. cxd5 cxd5 12. Ba3 Nc6 13. Rc1 b5 14. Nac3 b4 15. Nxd5 Nxd5 16. Bxd5 {1-0 (41) Iskusnyh,S (2473)-Palchuk,A (2188) Chess.com INT 2021}) 10. h3 {[%emt 0:00:00]} (10. cxd5 $14 cxd5 11. Bb2) 10... Nxc3 $11 {[%emt 0:00:00]} 11. Nxc3 {[%emt 0:00:00][%cal Rc4d5]} e5 {[%emt 0:00:00]} 12. cxd5 {[%emt 0:00:00] aiming for Ba3.} exd4 {[%emt 0:00:00]} 13. exd4 {[%emt 0:00:00]} cxd5 {[%emt 0:00:00]} 14. Be3 {[%emt 0:00:00]} (14. Bxd5 Bxh3 15. Ba3 (15. Bxb7 Ra7 $11) 15... Bxf1 16. Bxf8 (16. Kxf1 Re8 $17) 16... Kxf8 $11) 14... Nc6 {[%emt 0:00:00][%cal Bb8c6,Bc6d4,Bd4e2][%mdl 32]} 15. Qd2 {[%emt 0:00:00]} (15. Bxd5 Bxh3 16. Re1 Qd7 $15) 15... Re8 {[%emt 0:00:00]} 16. Bg5 {[%emt 0:00:00]} ({Don't play} 16. Bxd5 Bxh3 17. Rfe1 Rc8 $15) 16... Qd6 {[%emt 0:00:00]} (16... Qd7 {keeps more tension.} 17. Nxd5 Bxh3 18. Nf6+ Bxf6 19. Bxf6 Qf5) 17. Bf4 {[%emt 0:00:00]} Qb4 {[%emt 0:00:00]} 18. Nxd5 {[%emt 0:00:00]} Qxd2 {[%emt 0:00:00]} 19. Bxd2 {[%emt 0:00:00]} Nxd4 {[%emt 0:00:00][%cal Of5h3]} 20. Rad1 $1 {[%emt 0:00:00]} Re2 {[%emt 0:09:30] [#]} 21. Nf4 (21. Be3 $1 $16 {[%cal Re3d4]} Nc6 22. g4) 21... Bc2 $1 {[%emt 0:00:30] The position is equal.} 22. Nxe2 {[%emt 0:00:00]} Nxe2+ {[%emt 0:00:00]} 23. Kh2 {[%emt 0:00:00] Hoping for Rde1.} Bxd1 {[%emt 0:00:00]} 24. Rxd1 {[%emt 0:00:00] Strongly threatening Be3.} Rd8 {[%emt 0:00:00]} 25. Rf1 $2 {[%emt 0:00:00][%mdl 40960] Weighted Error Value: White=0.15 (very precise) /Black=0.08 (flawless) . An unexpected result.} 1/2-1/2

[Event "Charlotte Summer IM B 2022"]
[Site "Charlotte"]
[Date "2022.07.28"]
[Round "7.4"]
[White "Avila Rodriguez, Joshua Ad"]
[Black "Homa, Seth"]
[Result "1/2-1/2"]
[ECO "C88"]
[WhiteElo "2210"]
[BlackElo "2237"]
[Annotator "TA"]
[PlyCount "66"]
[EventDate "2022.07.24"]
[EventType "tourn"]
[EventCountry "USA"]
[SourceTitle "playchess.com"]
[Source "ChessBase"]
[SourceQuality "1"]
[TimeControl "5400+30"]

{[%evp 19,66,10,26,-93,-87,-68,-70,-70,-30,-33,-26,-29,-37,-16,-11,-63,0,0,64,32,104,109,103,119,91,64,173,156,164,103,96,107,101,0,0,0,0,0,0,0,0,0,0,0,0,0,0,0,0]} 1. e4 {[%emt 0:00:50]} e5 {[%emt 0:00:11]} 2. Nf3 {[%emt 0:00:15]} Nc6 {[%emt 0:00:08]} 3. Bb5 {[%emt 0:00:10]} a6 {[%emt 0:00:09]} 4. Ba4 {[%emt 0:00:06]} Nf6 {[%emt 0:00:11]} 5. O-O {[%emt 0:00:17]} Be7 {[%emt 0:00:06]} 6. Re1 {[%emt 0:00:27]} b5 {[%emt 0:00:08]} 7. Bb3 {[%emt 0:00:05]} O-O {[%emt 0:00:13]} 8. a4 {[%emt 0:00:58]} Bb7 {[%emt 0:00:11]} 9. axb5 {[%emt 0:17:55]} axb5 {[%emt 0:02:24]} 10. Rxa8 {[%emt 0:00:07]} Bxa8 {[%emt 0:10:29]} 11. d4 {[%emt 0:18:56] [#] C88: Closed Ruy Lopez: Anti-Marshall Systems.} (11. c3 $11 {remains equal.}) 11... Nxd4 $1 $17 {[%emt 0:03:32]} 12. Nxd4 {[%emt 0:00:18]} exd4 {[%emt 0:00:09]} 13. e5 {[%emt 0:00:19] [#] Black is slightly better.} Ne8 $146 {[%emt 0:00:08]} (13... Ne4 $5 {[%cal Rc7c5]} 14. c3 dxc3 15. Nxc3 Nxc3 16. bxc3 Bg5 $15) ({Predecessor:} 13... Ne4 14. Qg4 d5 15. exd6 Bxd6 16. g3 Re8 17. Na3 Nf6 18. Qd1 Bxa3 19. bxa3 c5 20. c4 dxc3 21. Qxd8 Rxd8 22. Re7 Be4 23. Bg5 c4 24. Bxc4 bxc4 25. Rxe4 Rd1+ {0-1 (25) Norevall,U-Vulcan,I Uppsala 1969}) 14. c3 {[%emt 0:01:33]} (14. Qxd4 c5 15. Qc3 d5 $17) 14... c5 {[%emt 0:10:31][%cal Bc7c5,Bc5c4][%mdl 32]} 15. cxd4 {[%emt 0:03:54]} c4 {[%emt 0:00:11]} 16. Bc2 {[%emt 0:00:07]} d5 {[%emt 0:00:08]} 17. Re3 {[%emt 0:13:46]} (17. Nd2 $11) 17... f5 {[%emt 0:05:43]} (17... g6 $15) 18. g4 $36 {[%emt 0:03:46][%mdl 2048] White fights for an advantage.} f4 {[%emt 0:11:09]} (18... b4 $11) 19. Rf3 $14 {[%emt 0:00:16]} g5 {[%emt 0:00:20]} (19... b4 $14) 20. Rh3 $16 {[%emt 0:07:46]} Rf7 {[%emt 0:00:03]} 21. Bf5 {[%emt 0:00:08] Black must now prevent Qc2.} Qb6 {[%emt 0:01:04]} 22. Qc2 {[%emt 0:01:30]} h6 {[%emt 0:02:40]} (22... h5 $1 $14) 23. Bg6 $18 {[%emt 0:00:45]} Qxd4 {[%emt 0:00:36] [#]} 24. Bxf7+ {[%emt 0:17:55]} (24. Rxh6 $6 Qxe5 25. Bxf7+ Kxf7 26. Qh7+ (26. Ra6 $2 Qe1+ 27. Kg2 f3+ 28. Kxf3 d4+ 29. Rxa8 d3 $19) 26... Ng7 $11) ({Better is} 24. e6 $1 $18 {[%cal Re6f7]} Rg7 25. Bxe8) 24... Kxf7 $16 {[%emt 0:00:10]} 25. Qf5+ {[%emt 0:05:22]} (25. Rxh6 $6 Qxe5 26. Bd2 (26. Ra6 $2 Qe1+ 27. Kg2 d4+ 28. Rxa8 d3 $19) 26... d4 27. Qg6+ Kf8 $11) (25. Qh7+ $6 Ng7 26. Bd2 (26. Rxh6 Qd1+ 27. Kg2 d4+) 26... Qxe5 27. Rxh6 Qe2 28. Qg6+ Kg8 $11) 25... Bf6 {[%emt 0:04:15]} 26. Qd7+ {[%emt 0:04:58] Really sharp!} ({Much worse is} 26. exf6 $6 Qd1+ 27. Kg2 d4+ 28. f3 Qe2+ 29. Kg1 Qe1+ 30. Kg2 Qe2+ 31. Kg1 Qe1+ 32. Kg2 Qe2+ $11) (26. Ra3 $16 Bb7 27. Qd7+ (27. exf6 Qd1+ 28. Kg2 d4+ 29. f3 Qe2+ 30. Kg1 Qe1+ 31. Kg2 Qe2+ 32. Kg1 Qe1+ 33. Kg2 Qe2+ $11) 27... Be7 28. Nd2 (28. Qxb7 Qd1+ 29. Kg2 Qxg4+ 30. Kh1 Qd1+ 31. Kg2 Qg4+ 32. Kh1 Qd1+ 33. Kg2 Qg4+ $11) (28. e6+ Kf8 $17)) 26... Kf8 $11 {[%emt 0:00:46] aiming for ...Qd1+. The position is equal.} 27. exf6 {[%emt 0:00:34] White threatens Qe7+ and mate.} Qd1+ {[%emt 0:00:18]} 28. Kg2 {[%emt 0:00:04] Threatening mate with Qe7+.} d4+ {[%emt 0:00:14]} 29. f3 {[%emt 0:00:06] Qe7+ would kill now.} Qe2+ {[%emt 0:11:32]} 30. Kg1 {[%emt 0:00:06] Strongly threatening Bd2.} Qe1+ {[%emt 0:00:10]} 31. Kg2 {[%emt 0:00:04]} Qe2+ {[%emt 0:00:08]} 32. Kg1 {[%emt 0:00:07] Hoping for Bd2.} Qe1+ {[%emt 0:00:08]} 33. Kg2 {[%emt 0:00:09]} Qe2+ {[%emt 0:00:07] Weighted Error Value: White=0.30/Black=0.17 (very precise)} 1/2-1/2